[Event "47th GRE-chT 2019"]
[Site "Patra"]
[Date "2019.07.05"]
[Round "6.36"]
[White "Kalyva, Kyriaki"]
[Black "Batzoli, Maria"]
[Result "1-0"]
[ECO "E40"]
[WhiteElo "1869"]
[BlackElo "1390"]
[Annotator "NA"]
[PlyCount "67"]
[EventDate "2019.07.02"]
[EventCountry "GRE"]
[SourceTitle "playchess.com"]
[Source "ChessBase"]
[SourceQuality "1"]
[TimeControl "5400+30"]

1. d4 {[%emt 0:00:00]} Nf6 {[%emt 0:00:00]} 2. c4 {[%emt 0:00:02]} e6 {[%emt 0:00:00]} 3. Nc3 {[%emt 0:00:07]} Bb4 {[%emt 0:00:00]} 4. e3 {[%emt 0:00:07]} Bxc3+ {[%emt 0:00:00]} 5. bxc3 {[%emt 0:00:03]} d6 {[%emt 0:00:00]} 6. Bd3 {[%emt 0:00:07]} Qe7 {[%emt 0:03:59]} 7. e4 {[%emt 0:00:14]} e5 {[%emt 0:00:13]} 8. Qe2 {[%emt 0:00:58]} c5 {[%emt 0:07:28]} 9. Nf3 {[%emt 0:01:10]} O-O {[%emt 0:00:33]} 10. O-O {[%emt 0:01:21]} Nbd7 {[%emt 0:07:48]} 11. Bd2 {[%emt 0:02:26]} Re8 {[%emt 0:05:01]} 12. d5 {[%emt 0:01:44]} Nf8 {[%emt 0:01:03]} 13. Bc2 {[%emt 0:01:36]} Ng6 {[%emt 0:09:44]} 14. Ne1 {[%emt 0:02:26]} Rf8 {[%emt 0:08:31]} 15. g3 {[%emt 0:04:42]} Bh3 {[%emt 0:00:20]} 16. Ng2 {[%emt 0:00:24]} Nd7 {[%emt 0:00:45]} 17. Qh5 {[%emt 0:01:06]} Bxg2 {[%emt 0:00:06]} 18. Kxg2 {[%emt 0:01:36]} Nb6 {[%emt 0:03:16]} 19. Bd3 {[%emt 0:01:44]} Qd7 {[%emt 0:19:20]} 20. f4 {[%emt 0:01:22]} f6 {[%emt 0:00:47]} 21. f5 {[%emt 0:00:10]} Ne7 {[%emt 0:00:46]} 22. g4 {[%emt 0:00:30]} Qe8 {[%emt 0:00:50]} 23. Qh4 {[%emt 0:00:39]} g5 {[%emt 0:12:14]} 24. fxg6 {[%emt 0:00:33]} Qxg6 {[%emt 0:00:18]} 25. Rf3 {[%emt 0:03:44]} Nxc4 {[%emt 0:00:41]} 26. Bxc4 {[%emt 0:00:49]} Rf7 {[%emt 0:01:12]} 27. Bd3 {[%emt 0:00:07]} c4 {[%emt 0:02:06]} 28. Bc2 {[%emt 0:00:07]} Nxd5 {[%emt 0:00:12]} 29. Rf5 {[%emt 0:00:48]} Ne7 {[%emt 0:00:12]} 30. Raf1 {[%emt 0:01:50]} Nxf5 {[%emt 0:00:11]} 31. exf5 {[%emt 0:01:20]} Qg7 {[%emt 0:00:05]} 32. Bh6 {[%emt 0:00:03]} Qh8 {[%emt 0:00:04]} 33. Be4 {[%emt 0:01:18]} Raf8 {[%emt 0:00:07]} 34. Bd5 {[%emt 0:00:43]} 1-0

[Event "47th GRE-chT 2019"]
[Site "Patra"]
[Date "2019.07.05"]
[Round "6.37"]
[White "Nikolaki, Dimitria"]
[Black "Kyriakidou, Chrysa"]
[Result "0-1"]
[ECO "D10"]
[WhiteElo "1323"]
[BlackElo "1338"]
[Annotator "NA"]
[PlyCount "90"]
[EventDate "2019.07.02"]
[EventCountry "GRE"]
[SourceTitle "playchess.com"]
[Source "ChessBase"]
[SourceQuality "1"]
[TimeControl "5400+30"]

1. d4 {[%emt 0:00:00]} d5 {[%emt 0:00:00]} 2. c4 {[%emt 0:00:00]} c6 {[%emt 0:00:00]} 3. cxd5 {[%emt 0:00:00]} cxd5 {[%emt 0:00:00]} 4. Bf4 {[%emt 0:00:00]} Nf6 {[%emt 0:00:00]} 5. e3 {[%emt 0:00:00]} Nc6 {[%emt 0:00:03]} 6. Nc3 {[%emt 0:00:14]} a6 {[%emt 0:00:06]} 7. Bd3 {[%emt 0:00:07]} Bg4 {[%emt 0:00:36]} 8. Nge2 {[%emt 0:00:11]} e6 {[%emt 0:00:11]} 9. h3 {[%emt 0:00:23]} Bh5 {[%emt 0:00:09]} 10. O-O {[%emt 0:00:13]} Bd6 {[%emt 0:00:52]} 11. Bxd6 {[%emt 0:00:18]} Qxd6 {[%emt 0:00:06]} 12. a3 {[%emt 0:04:22]} Bg6 {[%emt 0:00:22]} 13. Nf4 {[%emt 0:01:35]} Bxd3 {[%emt 0:00:20]} 14. Nxd3 {[%emt 0:00:24]} O-O {[%emt 0:02:46]} 15. Na4 {[%emt 0:07:04]} Ra7 {[%emt 0:28:25]} 16. Ndc5 {[%emt 0:04:18]} b5 {[%emt 0:01:19]} 17. Nc3 {[%emt 0:01:10]} e5 {[%emt 0:01:23]} 18. Nb3 {[%emt 0:05:36]} Rd8 {[%emt 0:05:37]} 19. dxe5 {[%emt 0:02:36]} Nxe5 {[%emt 0:03:04]} 20. Nd4 {[%emt 0:03:39]} Rad7 {[%emt 0:06:52]} 21. a4 {[%emt 0:04:02]} b4 {[%emt 0:03:22]} 22. Nce2 {[%emt 0:01:25]} Ne4 {[%emt 0:03:23]} 23. Rc1 {[%emt 0:05:09]} Rc7 {[%emt 0:06:20]} 24. Rxc7 {[%emt 0:02:38]} Qxc7 {[%emt 0:00:09]} 25. Nf4 {[%emt 0:09:36]} Qd7 {[%emt 0:01:05]} 26. Qe2 {[%emt 0:02:34]} Qxa4 {[%emt 0:11:40]} 27. b3 {[%emt 0:01:24]} Qa5 {[%emt 0:00:37]} 28. Nc2 {[%emt 0:03:51]} Nc3 {[%emt 0:03:01]} 29. Qh5 {[%emt 0:00:54]} Ng6 {[%emt 0:01:41]} 30. Nxg6 {[%emt 0:01:02]} hxg6 {[%emt 0:00:06]} 31. Qg5 {[%emt 0:02:32]} Re8 {[%emt 0:09:59]} 32. Qg4 {[%emt 0:03:45]} Rb8 {[%emt 0:03:26]} 33. Ra1 {[%emt 0:01:01]} Qb6 {[%emt 0:00:12]} 34. Qg5 {[%emt 0:04:35]} a5 {[%emt 0:00:36]} 35. Qe5 {[%emt 0:02:31]} Rc8 {[%emt 0:02:21]} 36. Nd4 {[%emt 0:02:38]} a4 {[%emt 0:02:39]} 37. h4 {[%emt 0:07:23]} a3 {[%emt 0:01:18]} 38. Kh1 {[%emt 0:12:26]} Nb5 {[%emt 0:02:00]} 39. Qxd5 {[%emt 0:01:33]} Nxd4 {[%emt 0:00:07]} 40. exd4 {[%emt 0:00:00]} Qc6 {[%emt 0:00:00]} 41. Qg5 {[%emt 0:00:00]} Qc3 {[%emt 0:00:00]} 42. Rg1 {[%emt 0:00:00]} a2 {[%emt 0:00:00]} 43. Qa5 {[%emt 0:00:00]} Qxb3 {[%emt 0:00:00]} 44. Kh2 {[%emt 0:00:00]} Qc4 {[%emt 0:00:00]} 45. Ra1 {[%emt 0:00:00]} b3 {[%emt 0:00:00]} 0-1

[Event "47th GRE-chT 2019"]
[Site "Patra"]
[Date "2019.07.05"]
[Round "6.38"]
[White "Androutsopoulos-Agiotatos, Vasil"]
[Black "Samakas, Anastasios"]
[Result "1/2-1/2"]
[ECO "C10"]
[WhiteElo "2063"]
[BlackElo "1999"]
[Annotator "NA"]
[PlyCount "134"]
[EventDate "2019.07.02"]
[EventCountry "GRE"]
[SourceTitle "playchess.com"]
[Source "ChessBase"]
[SourceQuality "1"]
[TimeControl "5400+30"]

1. e4 {[%emt 0:00:00]} e6 {[%emt 0:00:00]} 2. d4 {[%emt 0:00:00]} d5 {[%emt 0:00:00]} 3. Nc3 {[%emt 0:00:00]} dxe4 {[%emt 0:00:00]} 4. Nxe4 {[%emt 0:00:00]} Nf6 {[%emt 0:00:06]} 5. Nxf6+ {[%emt 0:00:00]} gxf6 {[%emt 0:05:09]} 6. Nf3 {[%emt 0:00:24]} b6 {[%emt 0:00:53]} 7. Bb5+ {[%emt 0:00:02]} c6 {[%emt 0:03:35]} 8. Bd3 {[%emt 0:00:26]} Bb7 {[%emt 0:06:05]} 9. Bf4 {[%emt 0:02:42]} Bd6 {[%emt 0:00:32]} 10. Bg3 {[%emt 0:01:28]} Qc7 {[%emt 0:03:11]} 11. Qe2 {[%emt 0:02:53]} Nd7 {[%emt 0:00:25]} 12. O-O-O {[%emt 0:03:36]} O-O-O {[%emt 0:03:19]} 13. Kb1 {[%emt 0:09:48]} h6 {[%emt 0:04:39]} 14. c3 {[%emt 0:07:08]} Kb8 {[%emt 0:04:27]} 15. Rhe1 {[%emt 0:12:20]} Rde8 {[%emt 0:07:56]} 16. Ba6 {[%emt 0:20:23]} Nf8 {[%emt 0:09:56]} 17. Nd2 {[%emt 0:11:57]} Bxg3 {[%emt 0:01:23]} 18. hxg3 {[%emt 0:01:57]} f5 {[%emt 0:01:33]} 19. Bxb7 {[%emt 0:00:01]} Kxb7 {[%emt 0:00:20]} 20. Nc4 {[%emt 0:05:58]} Ng6 {[%emt 0:02:39]} 21. Qh5 {[%emt 0:01:00]} Rd8 {[%emt 0:07:07]} 22. Ne5 {[%emt 0:01:13]} Nxe5 {[%emt 0:01:05]} 23. Rxe5 {[%emt 0:05:00]} c5 {[%emt 0:04:02]} 24. Qf3+ {[%emt 0:00:01]} Kb8 {[%emt 0:02:43]} 25. Qe3 {[%emt 0:00:20]} cxd4 {[%emt 0:01:01]} 26. cxd4 {[%emt 0:00:10]} Rc8 {[%emt 0:20:25]} 27. Qd2 {[%emt 0:00:32]} Rhd8 {[%emt 0:00:27]} 28. Re3 {[%emt 0:00:15]} Rxd4 {[%emt 0:00:28]} 29. Rd3 {[%emt 0:04:31]} Rxd3 {[%emt 0:00:01]} 30. Qxd3 {[%emt 0:01:32]} Qc4 {[%emt 0:07:27]} 31. Qd6+ {[%emt 0:00:00]} Kb7 {[%emt 0:01:55]} 32. Qd3 {[%emt 0:01:10]} Qxd3+ {[%emt 0:00:01]} 33. Rxd3 {[%emt 0:03:21]} b5 {[%emt 0:00:41]} 34. a3 {[%emt 0:01:48]} Kb6 {[%emt 0:00:39]} 35. Rd7 {[%emt 0:00:01]} Rc7 {[%emt 0:00:05]} 36. Rd8 {[%emt 0:02:08]} Rc5 {[%emt 0:01:08]} 37. Rd7 {[%emt 0:01:47]} Rc7 {[%emt 0:00:02]} 38. Rd8 {[%emt 0:00:39]} a5 {[%emt 0:01:47]} 39. Rb8+ {[%emt 0:00:53]} Rb7 {[%emt 0:00:00]} 40. Rh8 {[%emt 0:00:00]} b4 {[%emt 0:00:00]} 41. axb4 {[%emt 0:00:00]} axb4 {[%emt 0:00:00]} 42. Kc2 {[%emt 0:00:00]} Kb5 {[%emt 0:00:00]} 43. Rxh6 {[%emt 0:00:00]} Rc7+ {[%emt 0:00:00]} 44. Kb3 {[%emt 0:00:00]} Rd7 {[%emt 0:00:00]} 45. Rh4 {[%emt 0:00:00]} Rd3+ {[%emt 0:00:00]} 46. Kc2 {[%emt 0:00:00]} Rd5 {[%emt 0:00:00]} 47. Kb3 {[%emt 0:00:00]} Rd3+ {[%emt 0:00:00]} 48. Kc2 {[%emt 0:00:00]} Rd5 {[%emt 0:00:00]} 49. Kb3 {[%emt 0:00:00]} Ka5 {[%emt 0:00:00]} 50. Rf4 {[%emt 0:00:00]} Rd2 {[%emt 0:00:00]} 51. Rf3 {[%emt 0:00:00]} Rd4 {[%emt 0:00:00]} 52. Re3 {[%emt 0:00:00]} Kb5 {[%emt 0:00:00]} 53. Re5+ {[%emt 0:00:00]} Kc6 {[%emt 0:00:00]} 54. Re3 {[%emt 0:04:01]} Kc5 {[%emt 0:00:00]} 55. Rf3 {[%emt 0:01:45]} Kd5 {[%emt 0:00:00]} 56. Rf4 {[%emt 0:03:08]} Rd2 {[%emt 0:00:00]} 57. Kxb4 {[%emt 0:00:01]} Rxb2+ {[%emt 0:00:00]} 58. Kc3 {[%emt 0:00:03]} Re2 {[%emt 0:00:48]} 59. Kd3 {[%emt 0:00:01]} Re1 {[%emt 0:00:44]} 60. g4 {[%emt 0:01:23]} Ke5 {[%emt 0:00:12]} 61. g3 {[%emt 0:01:51]} fxg4 {[%emt 0:01:25]} 62. Rxf7 {[%emt 0:00:07]} Re4 {[%emt 0:01:37]} 63. Rh7 {[%emt 0:00:07]} Ra4 {[%emt 0:00:20]} 64. Rh5+ {[%emt 0:00:01]} Kd6 {[%emt 0:01:04]} 65. Rh8 {[%emt 0:00:26]} Ra2 {[%emt 0:00:47]} 66. Ke3 {[%emt 0:00:17]} Ra4 {[%emt 0:00:41] Ke4 Ke5+} 67. Ra8 Rxa8 1/2-1/2

[Event "47th GRE-chT 2019"]
[Site "Patra"]
[Date "2019.07.05"]
[Round "6.39"]
[White "Ioannou, Ioannis Nik."]
[Black "Koutlas, Nikolaos"]
[Result "0-1"]
[ECO "E46"]
[WhiteElo "1489"]
[BlackElo "1969"]
[Annotator "NA"]
[PlyCount "76"]
[EventDate "2019.07.02"]
[EventCountry "GRE"]
[SourceTitle "playchess.com"]
[Source "ChessBase"]
[SourceQuality "1"]
[TimeControl "5400+30"]

1. d4 {[%emt 0:00:00]} Nf6 {[%emt 0:00:00]} 2. c4 {[%emt 0:00:00]} e6 {[%emt 0:00:00]} 3. Nc3 {[%emt 0:00:00]} Bb4 {[%emt 0:00:00]} 4. e3 {[%emt 0:00:06]} O-O {[%emt 0:00:03]} 5. Nge2 {[%emt 0:00:24]} Re8 {[%emt 0:00:51]} 6. a3 {[%emt 0:01:16]} Bf8 {[%emt 0:00:06]} 7. g3 {[%emt 0:05:43]} d5 {[%emt 0:03:17]} 8. cxd5 {[%emt 0:01:59]} exd5 {[%emt 0:00:14]} 9. Bg2 {[%emt 0:03:45]} c6 {[%emt 0:01:04]} 10. Bd2 {[%emt 0:07:41]} Bf5 {[%emt 0:03:06]} 11. Nf4 {[%emt 0:09:17]} Bd6 {[%emt 0:06:52]} 12. Nce2 {[%emt 0:08:27]} h6 {[%emt 0:13:14]} 13. h4 {[%emt 0:17:35]} Nbd7 {[%emt 0:11:04]} 14. f3 {[%emt 0:17:15]} Qb6 {[%emt 0:07:30]} 15. Bc1 {[%emt 0:01:06]} Qc7 {[%emt 0:06:18]} 16. Kf2 {[%emt 0:01:06]} h5 {[%emt 0:04:48]} 17. Bh3 {[%emt 0:02:35]} Bxh3 {[%emt 0:01:53]} 18. Rxh3 {[%emt 0:00:10]} Nf8 {[%emt 0:01:13]} 19. b4 {[%emt 0:01:33]} a6 {[%emt 0:00:57]} 20. Bd2 {[%emt 0:01:04]} N8d7 {[%emt 0:03:19]} 21. Qc2 {[%emt 0:01:30]} Nb6 {[%emt 0:01:20]} 22. Qf5 {[%emt 0:02:38]} Nc4 {[%emt 0:00:23]} 23. Bc1 {[%emt 0:00:09]} Qe7 {[%emt 0:03:04]} 24. Qd3 {[%emt 0:01:25]} b5 {[%emt 0:03:19]} 25. Rh1 {[%emt 0:03:50]} a5 {[%emt 0:01:33]} 26. bxa5 {[%emt 0:09:16]} Rxa5 {[%emt 0:00:10]} 27. Ng2 {[%emt 0:01:23]} Rea8 {[%emt 0:04:02]} 28. Re1 {[%emt 0:01:52]} Bxa3 {[%emt 0:03:36]} 29. Bxa3 {[%emt 0:00:35]} Rxa3 {[%emt 0:00:08]} 30. Rxa3 {[%emt 0:00:07]} Rxa3 {[%emt 0:00:06]} 31. Qc2 {[%emt 0:01:04]} b4 {[%emt 0:05:56]} 32. Nc1 {[%emt 0:00:22]} g6 {[%emt 0:01:06]} 33. e4 {[%emt 0:00:43]} Qa7 {[%emt 0:00:21]} 34. Rd1 {[%emt 0:00:29]} b3 {[%emt 0:00:28]} 35. Qb1 {[%emt 0:00:30]} b2 {[%emt 0:00:30]} 36. Ne2 {[%emt 0:00:31]} Ra1 {[%emt 0:00:21]} 37. Qc2 {[%emt 0:00:30]} Rxd1 {[%emt 0:00:15]} 38. Qxd1 {[%emt 0:00:10]} Qa1 {[%emt 0:00:10]} 0-1

[Event "47th GRE-chT 2019"]
[Site "Patra"]
[Date "2019.07.05"]
[Round "6.40"]
[White "Dogias, Christos"]
[Black "Ximinis, Ioannis"]
[Result "1-0"]
[ECO "C02"]
[WhiteElo "1409"]
[BlackElo "1156"]
[Annotator "NA"]
[PlyCount "111"]
[EventDate "2019.07.02"]
[EventCountry "GRE"]
[SourceTitle "playchess.com"]
[Source "ChessBase"]
[SourceQuality "1"]
[TimeControl "5400+30"]

1. e4 {[%emt 0:00:00]} e6 {[%emt 0:00:00]} 2. d4 {[%emt 0:00:00]} d5 {[%emt 0:00:00]} 3. e5 {[%emt 0:00:03]} c5 {[%emt 0:00:00]} 4. c3 {[%emt 0:00:09]} Qb6 {[%emt 0:00:07]} 5. Nf3 {[%emt 0:00:25]} Nc6 {[%emt 0:00:06]} 6. a3 {[%emt 0:00:51]} c4 {[%emt 0:00:08]} 7. Be2 {[%emt 0:01:06]} Nge7 {[%emt 0:00:13]} 8. O-O {[%emt 0:00:32]} Bd7 {[%emt 0:00:18]} 9. Nbd2 {[%emt 0:01:11]} Na5 {[%emt 0:00:41]} 10. Rb1 {[%emt 0:00:21]} Nc8 {[%emt 0:01:55]} 11. Ne1 {[%emt 0:05:58]} Qc7 {[%emt 0:00:38]} 12. f4 {[%emt 0:00:16]} Nb6 {[%emt 0:00:13]} 13. Nc2 {[%emt 0:00:46]} Ba4 {[%emt 0:01:15]} 14. Nf3 {[%emt 0:00:48]} O-O-O {[%emt 0:01:47]} 15. Be3 {[%emt 0:00:18]} Be7 {[%emt 0:03:14]} 16. Nd2 {[%emt 0:01:08]} Kb8 {[%emt 0:02:41]} 17. Qc1 {[%emt 0:00:04]} Rc8 {[%emt 0:00:30]} 18. Ne1 {[%emt 0:00:09]} Nb3 {[%emt 0:02:22]} 19. Nxb3 {[%emt 0:00:10]} Bxb3 {[%emt 0:00:04]} 20. Nf3 {[%emt 0:00:17]} Ka8 {[%emt 0:01:54]} 21. Ng5 {[%emt 0:01:53]} Bxg5 {[%emt 0:01:13]} 22. fxg5 {[%emt 0:00:17]} h6 {[%emt 0:00:19]} 23. gxh6 {[%emt 0:00:06]} gxh6 {[%emt 0:00:02]} 24. Qd2 {[%emt 0:00:28]} h5 {[%emt 0:02:13]} 25. Rf2 {[%emt 0:00:18]} Rcg8 {[%emt 0:00:16]} 26. Rbf1 {[%emt 0:00:11]} Rh7 {[%emt 0:00:57]} 27. Kh1 {[%emt 0:00:38]} Ba4 {[%emt 0:03:41]} 28. Bg5 {[%emt 0:03:37]} Be8 {[%emt 0:09:38]} 29. Bf6 {[%emt 0:00:09]} Nd7 {[%emt 0:00:26]} 30. Bd1 {[%emt 0:00:11]} Nxf6 {[%emt 0:00:27]} 31. Rxf6 {[%emt 0:00:08]} Qb6 {[%emt 0:13:31]} 32. R1f4 {[%emt 0:01:43]} Rhg7 {[%emt 0:08:54]} 33. g3 {[%emt 0:00:10]} Rg5 {[%emt 0:00:08]} 34. Rh6 {[%emt 0:00:26]} Qd8 {[%emt 0:02:48]} 35. Qf2 {[%emt 0:01:37]} R5g6 {[%emt 0:13:46]} 36. Rxh5 {[%emt 0:00:20]} Rf8 {[%emt 0:00:07]} 37. Rf6 {[%emt 0:00:26]} Qe7 {[%emt 0:01:20]} 38. Rh6 {[%emt 0:00:19]} Rxh6 {[%emt 0:00:45]} 39. Rxh6 {[%emt 0:00:28]} Qg5 {[%emt 0:00:48]} 40. Qf4 {[%emt 0:00:00]} Qg8 {[%emt 0:00:00]} 41. Qf6 {[%emt 0:00:00]} a6 {[%emt 0:00:00]} 42. Kg2 {[%emt 0:00:00]} Ka7 {[%emt 0:00:00]} 43. h3 {[%emt 0:00:00]} Bc6 {[%emt 0:00:00]} 44. Bc2 {[%emt 0:00:00]} Rb8 {[%emt 0:00:00]} 45. Rh7 {[%emt 0:00:00]} Be8 {[%emt 0:00:00]} 46. Qg7 {[%emt 0:00:00]} Qxg7 {[%emt 0:00:00]} 47. Rxg7 {[%emt 0:00:00]} b5 {[%emt 0:00:00]} 48. h4 {[%emt 0:00:00]} Rb7 {[%emt 0:00:00]} 49. h5 {[%emt 0:00:00]} f5 {[%emt 0:00:00]} 50. exf6 {[%emt 0:00:00]} Bxh5 {[%emt 0:00:00]} 51. Rxb7+ {[%emt 0:00:00]} Kxb7 {[%emt 0:00:00]} 52. g4 {[%emt 0:00:00]} Bf7 {[%emt 0:00:00]} 53. g5 {[%emt 0:00:00]} Kc7 {[%emt 0:00:00]} 54. g6 {[%emt 0:00:00]} Bg8 {[%emt 0:00:00]} 55. f7 {[%emt 0:00:00]} Bxf7 {[%emt 0:00:00]} 56. gxf7 {[%emt 0:00:00]} 1-0

[Event "47th GRE-chT 2019"]
[Site "Patra"]
[Date "2019.07.06"]
[Round "7.2"]
[White "Martinovic, Sasa"]
[Black "Galopoulos, Nikolaos"]
[Result "1/2-1/2"]
[ECO "D35"]
[WhiteElo "2560"]
[BlackElo "2361"]
[Annotator "ChessBase"]
[PlyCount "74"]
[EventDate "2019.07.02"]
[EventCountry "GRE"]
[SourceTitle "playchess.com"]
[Source "ChessBase"]
[SourceQuality "1"]
[TimeControl "5400+30"]

1. d4 {[%emt 0:00:00]} Nf6 {[%emt 0:00:37]} 2. c4 {[%emt 0:00:00]} e6 {[%emt 0:00:04]} 3. Nc3 {[%emt 0:00:00]} d5 {[%emt 0:00:02]} 4. cxd5 {[%emt 0:00:00]} exd5 {[%emt 0:00:04]} 5. Bg5 {[%emt 0:00:00]} c6 {[%emt 0:00:08]} 6. e3 {[%emt 0:00:07]} Be7 {[%emt 0:00:07]} 7. Bd3 {[%emt 0:01:03]} Nbd7 {[%emt 0:02:00]} 8. Nge2 {[%emt 0:01:34]} Nh5 {[%emt 0:02:36]} 9. Bxe7 {[%emt 0:00:14]} Qxe7 {[%emt 0:00:02]} 10. g4 {[%emt 0:07:54]} Nhf6 {[%emt 0:00:30]} 11. Ng3 {[%emt 0:00:09]} Nb6 {[%emt 0:02:33]} 12. g5 {[%emt 0:03:22]} Ng8 {[%emt 0:00:08]} 13. h4 {[%emt 0:00:53]} g6 {[%emt 0:00:16]} 14. Qf3 {[%emt 0:10:19]} h6 {[%emt 0:03:42]} 15. gxh6 {[%emt 0:06:49]} Nxh6 {[%emt 0:03:06]} 16. Qf4 {[%emt 0:01:26]} Be6 {[%emt 0:01:05]} 17. O-O-O {[%emt 0:09:21]} O-O-O {[%emt 0:00:47]} 18. Rdg1 {[%emt 0:00:31]} Rdg8 {[%emt 0:06:29]} 19. f3 {[%emt 0:05:34]} f6 {[%emt 0:19:14]} 20. e4 {[%emt 0:00:23]} Nf7 {[%emt 0:00:49]} 21. Nge2 {[%emt 0:07:55]} Nd6 {[%emt 0:06:27]} 22. Kb1 {[%emt 0:04:36]} g5 {[%emt 0:02:26]} 23. hxg5 {[%emt 0:00:21]} Rxh1 {[%emt 0:00:01]} 24. Rxh1 {[%emt 0:00:05]} fxg5 {[%emt 0:00:08]} 25. Qc1 {[%emt 0:09:23]} Rf8 {[%emt 0:04:05]} 26. e5 {[%emt 0:03:08]} Bf5 {[%emt 0:01:37]} 27. Bxf5+ {[%emt 0:05:10]} Nxf5 {[%emt 0:00:03]} 28. Rg1 {[%emt 0:00:07]} Nh4 {[%emt 0:03:59]} 29. Qxg5 {[%emt 0:00:43]} Qxg5 {[%emt 0:01:46]} 30. Rxg5 {[%emt 0:00:04]} Nxf3 {[%emt 0:00:05]} 31. Rg7 {[%emt 0:00:50]} Nc4 {[%emt 0:00:28]} 32. b3 {[%emt 0:07:14]} Ne3 {[%emt 0:01:29]} 33. e6 {[%emt 0:07:41]} Re8 {[%emt 0:02:15]} 34. Rg3 {[%emt 0:01:32]} Nf1 {[%emt 0:00:27]} 35. Rg6 {[%emt 0:00:13]} Ne3 {[%emt 0:00:58]} 36. Rg3 {[%emt 0:01:41]} Nf1 {[%emt 0:00:06]} 37. Rg6 {[%emt 0:00:04]} Ne3 {[%emt 0:00:02]} 1/2-1/2

[Event "47th GRE-chT 2019"]
[Site "Patra"]
[Date "2019.07.06"]
[Round "7.2"]
[White "Mastrovasilis, Athanasios"]
[Black "Safarli, Eltaj"]
[Result "1/2-1/2"]
[ECO "D85"]
[WhiteElo "2518"]
[BlackElo "2608"]
[Annotator "RC"]
[PlyCount "61"]
[EventDate "2019.07.02"]
[EventCountry "GRE"]
[SourceTitle "playchess.com"]
[Source "ChessBase"]
[SourceQuality "1"]
[TimeControl "5400+30"]

1. d4 {[%emt 0:00:00]} Nf6 {[%emt 0:01:59]} 2. c4 {[%emt 0:00:04]} g6 {[%emt 0:00:06]} 3. Nc3 {[%emt 0:00:04]} d5 {[%emt 0:00:13]} 4. cxd5 {[%emt 0:00:03]} Nxd5 {[%emt 0:00:08]} 5. e4 {[%emt 0:00:05]} Nxc3 {[%emt 0:00:03]} 6. bxc3 {[%emt 0:00:05]} Bg7 {[%emt 0:00:17]} 7. Nf3 {[%emt 0:00:28]} c5 {[%emt 0:00:40]} 8. Bb5+ {[%emt 0:03:09]} Nc6 {[%emt 0:01:27]} 9. O-O {[%emt 0:02:31]} O-O {[%emt 0:01:24]} 10. Ba3 {[%emt 0:04:23]} cxd4 {[%emt 0:00:53]} 11. Bxc6 {[%emt 0:00:03]} bxc6 {[%emt 0:00:06]} 12. cxd4 {[%emt 0:01:04]} Bg4 {[%emt 0:00:26]} 13. Bc5 {[%emt 0:04:44]} Re8 {[%emt 0:01:46]} 14. Rb1 {[%emt 0:11:30]} Qd7 {[%emt 0:04:14]} 15. Rb4 {[%emt 0:06:11]} a5 {[%emt 0:01:36]} 16. Ra4 {[%emt 0:08:34]} Qb7 {[%emt 0:24:37]} 17. Qb1 {[%emt 0:08:34]} Qb5 {[%emt 0:00:33]} 18. Ra3 {[%emt 0:05:39]} Rad8 {[%emt 0:20:49]} 19. Qxb5 {[%emt 0:00:09]} cxb5 {[%emt 0:00:12]} 20. Rxa5 {[%emt 0:00:05]} Bxf3 {[%emt 0:00:07]} 21. gxf3 {[%emt 0:00:05]} Bxd4 {[%emt 0:00:39]} 22. Rxb5 {[%emt 0:00:06]} Bxc5 {[%emt 0:00:04]} 23. Rxc5 {[%emt 0:08:06]} Rd2 {[%emt 0:07:53]} 24. a4 {[%emt 0:02:28]} Rb8 {[%emt 0:02:21]} 25. Ra5 {[%emt 0:05:09]} Rbb2 {[%emt 0:02:32]} 26. Kg2 {[%emt 0:01:25]} Ra2 {[%emt 0:00:37]} 27. Ra7 {[%emt 0:00:42]} e6 {[%emt 0:01:08]} 28. a5 {[%emt 0:01:13]} Rdc2 {[%emt 0:01:08]} 29. a6 {[%emt 0:01:38]} Rc6 {[%emt 0:00:57]} 30. Rd1 {[%emt 0:00:34]} Rcxa6 {[%emt 0:00:08]} 31. Rxa6 {[%emt 0:00:35]} 1/2-1/2

[Event "47th GRE-chT 2019"]
[Site "Patra"]
[Date "2019.07.06"]
[Round "7.3"]
[White "Halkias, Stelios"]
[Black "Malikentzos, Sotirios"]
[Result "0-1"]
[ECO "D63"]
[WhiteElo "2553"]
[BlackElo "2428"]
[Annotator "ChessBase"]
[PlyCount "69"]
[EventDate "2019.07.02"]
[EventCountry "GRE"]
[SourceTitle "playchess.com"]
[Source "ChessBase"]
[SourceQuality "1"]
[TimeControl "5400+30"]

1. c4 {[%emt 0:08:24]} e6 {[%emt 0:00:00]} 2. Nc3 {[%emt 0:00:04]} d5 {[%emt 0:00:00]} 3. d4 {[%emt 0:00:06]} Nf6 {[%emt 0:00:01]} 4. Bg5 {[%emt 0:00:34]} Be7 {[%emt 0:00:13]} 5. e3 {[%emt 0:03:44]} O-O {[%emt 0:02:46]} 6. Rc1 {[%emt 0:01:50]} Nbd7 {[%emt 0:00:30]} 7. Nf3 {[%emt 0:03:09]} h6 {[%emt 0:03:41]} 8. Bh4 {[%emt 0:04:55]} c5 {[%emt 0:00:09]} 9. dxc5 {[%emt 0:08:52]} dxc4 {[%emt 0:00:13]} 10. c6 {[%emt 0:02:48]} bxc6 {[%emt 0:01:09]} 11. Bxc4 {[%emt 0:00:27]} Bb7 {[%emt 0:15:18]} 12. O-O {[%emt 0:00:50]} c5 {[%emt 0:02:03]} 13. Be2 {[%emt 0:02:12]} Ne4 {[%emt 0:06:40]} 14. Bxe7 {[%emt 0:06:51]} Qxe7 {[%emt 0:00:08]} 15. Nxe4 {[%emt 0:04:00]} Bxe4 {[%emt 0:00:07]} 16. Qa4 {[%emt 0:01:53]} Bd5 {[%emt 0:01:50]} 17. Qa5 {[%emt 0:06:18]} Qd8 {[%emt 0:08:54]} 18. Qa3 {[%emt 0:10:54]} Qb6 {[%emt 0:04:42]} 19. Rfd1 {[%emt 0:00:30]} Rfd8 {[%emt 0:01:59]} 20. Nd2 {[%emt 0:06:02]} a5 {[%emt 0:13:29]} 21. e4 {[%emt 0:02:28]} Bb7 {[%emt 0:01:08]} 22. Nc4 {[%emt 0:01:22]} Qb4 {[%emt 0:07:31]} 23. Qe3 {[%emt 0:02:06]} Ba6 {[%emt 0:00:16]} 24. a3 {[%emt 0:06:25]} Qb8 {[%emt 0:00:26]} 25. Rd2 {[%emt 0:04:21]} Qc7 {[%emt 0:06:50]} 26. f3 {[%emt 0:01:43]} Bxc4 {[%emt 0:04:35]} 27. Rxc4 {[%emt 0:00:27]} Rab8 {[%emt 0:01:39]} 28. g3 {[%emt 0:01:41]} Rb6 {[%emt 0:02:15]} 29. Qc3 {[%emt 0:02:37]} Ra8 {[%emt 0:02:59]} 30. Kf2 {[%emt 0:02:02]} Qb7 {[%emt 0:00:32]} 31. Ra4 {[%emt 0:02:59]} Rb8 {[%emt 0:05:13]} 32. Rxa5 {[%emt 0:02:37]} Rb3 {[%emt 0:00:12]} 33. Qc4 {[%emt 0:00:42]} Qc7 {[%emt 0:02:21]} 34. Qa4 {[%emt 0:00:33]} Ne5 {[%emt 0:02:48]} 35. Ra8 {[%emt 0:01:04]} 0-1